[Event "Titled Tuesday Blitz September 28 2021"]
[White "Azarov, Sergei"]
[Black "Ekdyshman, Mikhail"]
[WhiteFideId "13501470"]
[BlackFideId "4149416"]
[WhiteElo "2494"]
[BlackElo "2256"]
[Result "1-0"]
[Round "01"]
[TimeControl "180+1"]
[Date "2021.09.28"]
[WhiteClock "0:00:06"]
[BlackClock "0:00:09"]

1. e4 {[%clk 0:01:49]}  c5 {[%clk 0:03:00]} 2. Nf3 {[%clk 0:01:47]}  d6 {[%clk 0:03:01]} 3. d4 {[%clk 0:01:47]}  cxd4 {[%clk 0:03:01]} 4. Nxd4 {[%clk 0:01:48]}  Nf6 {[%clk 0:03:01]} 5. Nc3 {[%clk 0:01:49]}  a6 {[%clk 0:03:01]} 6. Bg5 {[%clk 0:01:50]}  Nbd7 {[%clk 0:03:01]} 7. f4 {[%clk 0:01:50]}  e6 {[%clk 0:02:59]} 8. Qf3 {[%clk 0:01:50]}  Be7 {[%clk 0:02:58]} 9. O-O-O {[%clk 0:01:50]}  Qc7 {[%clk 0:02:54]} 10. Bd3 {[%clk 0:01:50]}  b5 {[%clk 0:02:53]} 11. Rhe1 {[%clk 0:01:45]}  Bb7 {[%clk 0:02:52]} 12. Nd5 {[%clk 0:01:45]}  Nxd5 {[%clk 0:02:25]} 13. exd5 {[%clk 0:01:44]}  Bxd5 {[%clk 0:02:24]} 14. Qxd5 {[%clk 0:01:41]}  exd5 {[%clk 0:02:19]} 15. Rxe7+ {[%clk 0:01:41]}  Kf8 {[%clk 0:02:14]} 16. Bf5 {[%clk 0:01:39]}  Rd8 {[%clk 0:01:38]} 17. Be6 {[%clk 0:01:37]}  f6 {[%clk 0:01:07]} 18. Rf7+ {[%clk 0:01:19]}  Ke8 {[%clk 0:01:07]} 19. Re1 {[%clk 0:00:53]}  Qa5 {[%clk 0:00:45]} 20. Bh4 {[%clk 0:00:51]}  Ne5 {[%clk 0:00:29]} 21. fxe5 {[%clk 0:00:49]}  dxe5 {[%clk 0:00:28]} 22. Nf5 {[%clk 0:00:49]}  Rg8 {[%clk 0:00:22]} 23. Re7+ {[%clk 0:00:35]}  Kf8 {[%clk 0:00:22]} 24. Rf7+ {[%clk 0:00:29]}  Ke8 {[%clk 0:00:22]} 25. Nxg7+ {[%clk 0:00:15]}  Rxg7 {[%clk 0:00:22]} 26. Rxg7 {[%clk 0:00:16]}  Qb4 {[%clk 0:00:12]} 27. Rxh7 {[%clk 0:00:10]}  Rd6 {[%clk 0:00:08]} 28. Bh3 {[%clk 0:00:08]}  Qf4+ {[%clk 0:00:07]} 29. Kb1 {[%clk 0:00:08]}  f5 {[%clk 0:00:08]} 30. g3 {[%clk 0:00:08]}  Qf2 {[%clk 0:00:07]} 31. Rxe5+ {[%clk 0:00:07]}  Kf8 {[%clk 0:00:08]} 32. Rxf5+ {[%clk 0:00:07]}  Kg8 {[%clk 0:00:08]} 33. Rxf2 {[%clk 0:00:06]}  Kxh7 {[%clk 0:00:09]} 34. Bf5+ {[%clk 0:00:06]} 1-0


[Site "https://www.chess.com"]

[Event "Titled Tuesday Blitz September 28 2021"]
[White "Babiy, Olga"]
[Black "Korobov, Anton"]
[WhiteFideId "14117258"]
[BlackFideId "14105730"]
[WhiteElo "2253"]
[BlackElo "2703"]
[Result "0-1"]
[Round "01"]
[TimeControl "180+1"]
[Date "2021.09.28"]
[WhiteClock "0:00:01"]
[BlackClock "0:00:47"]

1. d4 {[%clk 0:02:47]}  Nf6 {[%clk 0:02:59]} 2. Nf3 {[%clk 0:02:47]}  e6 {[%clk 0:02:59]} 3. Bf4 {[%clk 0:02:46]}  b6 {[%clk 0:02:55]} 4. e3 {[%clk 0:02:46]}  Bb7 {[%clk 0:02:55]} 5. h3 {[%clk 0:02:47]}  c5 {[%clk 0:02:51]} 6. c3 {[%clk 0:02:45]}  Nc6 {[%clk 0:02:44]} 7. Nbd2 {[%clk 0:02:45]}  Be7 {[%clk 0:02:42]} 8. Bd3 {[%clk 0:02:45]}  O-O {[%clk 0:02:41]} 9. O-O {[%clk 0:02:45]}  Rc8 {[%clk 0:02:42]} 10. Re1 {[%clk 0:02:40]}  d5 {[%clk 0:02:27]} 11. Ne5 {[%clk 0:02:34]}  Nxe5 {[%clk 0:02:27]} 12. dxe5 {[%clk 0:02:30]}  Nd7 {[%clk 0:02:26]} 13. Qh5 {[%clk 0:02:19]}  f5 {[%clk 0:02:19]} 14. g4 {[%clk 0:01:46]}  Qe8 {[%clk 0:01:58]} 15. Qxe8 {[%clk 0:01:35]}  Rcxe8 {[%clk 0:01:59]} 16. gxf5 {[%clk 0:01:23]}  exf5 {[%clk 0:01:58]} 17. Bb5 {[%clk 0:01:23]}  Rd8 {[%clk 0:01:57]} 18. Nf3 {[%clk 0:01:10]}  a6 {[%clk 0:01:41]} 19. Be2 {[%clk 0:00:55]}  Rfe8 {[%clk 0:01:29]} 20. c4 {[%clk 0:00:29]}  Nf8 {[%clk 0:01:22]} 21. Rad1 {[%clk 0:00:26]}  Ne6 {[%clk 0:01:20]} 22. cxd5 {[%clk 0:00:22]}  Bxd5 {[%clk 0:01:21]} 23. Rxd5 {[%clk 0:00:19]}  Rxd5 {[%clk 0:01:21]} 24. Bc4 {[%clk 0:00:19]}  Red8 {[%clk 0:01:21]} 25. Bxd5 {[%clk 0:00:10]}  Rxd5 {[%clk 0:01:22]} 26. h4 {[%clk 0:00:08]}  h6 {[%clk 0:01:06]} 27. Kf1 {[%clk 0:00:08]}  c4 {[%clk 0:01:05]} 28. h5 {[%clk 0:00:08]}  b5 {[%clk 0:01:03]} 29. Ke2 {[%clk 0:00:08]}  b4 {[%clk 0:00:56]} 30. Rc1 {[%clk 0:00:07]}  Ra5 {[%clk 0:00:51]} 31. Rxc4 {[%clk 0:00:07]}  Rxa2 {[%clk 0:00:51]} 32. Rc2 {[%clk 0:00:06]}  b3 {[%clk 0:00:51]} 33. Rd2 {[%clk 0:00:06]}  Bb4 {[%clk 0:00:50]} 34. Rd7 {[%clk 0:00:04]}  Rxb2+ {[%clk 0:00:50]} 35. Kf1 {[%clk 0:00:02]}  Rc2 {[%clk 0:00:47]} 36. Rb7 {[%clk 0:00:01]}  a5 {[%clk 0:00:47]} 0-1


[Site "https://www.chess.com"]

[Event "Titled Tuesday Blitz September 28 2021"]
[White "Balabayeva, Xeniya"]
[Black "Khusnutdinov, Rustam"]
[WhiteFideId "13719688"]
[BlackFideId "13701703"]
[WhiteElo "1965"]
[BlackElo "2571"]
[Result "0-1"]
[Round "01"]
[TimeControl "180+1"]
[Date "2021.09.28"]
[WhiteClock "0:01:32"]
[BlackClock "0:02:36"]

1. e4 {[%clk 0:03:00]}  e5 {[%clk 0:02:55]} 2. Nf3 {[%clk 0:02:59]}  Nf6 {[%clk 0:02:55]} 3. Nxe5 {[%clk 0:02:51]}  d6 {[%clk 0:02:55]} 4. Nf3 {[%clk 0:02:51]}  Nxe4 {[%clk 0:02:55]} 5. Nc3 {[%clk 0:02:45]}  Nxc3 {[%clk 0:02:55]} 6. dxc3 {[%clk 0:02:46]}  Be7 {[%clk 0:02:56]} 7. Be3 {[%clk 0:02:41]}  O-O {[%clk 0:02:57]} 8. Qd2 {[%clk 0:02:36]}  Nd7 {[%clk 0:02:57]} 9. Bd3 {[%clk 0:02:17]}  Nc5 {[%clk 0:02:56]} 10. Bxc5 {[%clk 0:01:55]}  dxc5 {[%clk 0:02:57]} 11. O-O-O {[%clk 0:01:55]}  Be6 {[%clk 0:02:55]} 12. Rhe1 {[%clk 0:01:46]}  Bxa2 {[%clk 0:02:42]} 13. b3 {[%clk 0:01:42]}  c4 {[%clk 0:02:37]} 14. Bxc4 {[%clk 0:01:32]}  Ba3# {[%clk 0:02:36]} 0-1


[Site "https://www.chess.com"]

[Event "Titled Tuesday Blitz September 28 2021"]
[White "Berezin, Viktor"]
[Black "Maly, Alexey"]
[WhiteFideId "14107872"]
[BlackFideId "14103184"]
[WhiteElo "2310"]
[BlackElo "2250"]
[Result "1/2-1/2"]
[Round "01"]
[TimeControl "180+1"]
[Date "2021.09.28"]
[WhiteClock "0:01:36"]
[BlackClock "0:01:33"]

1. d4 {[%clk 0:02:56]}  d5 {[%clk 0:02:59]} 2. c4 {[%clk 0:02:56]}  dxc4 {[%clk 0:02:59]} 3. e3 {[%clk 0:02:56]}  Nf6 {[%clk 0:02:59]} 4. Nf3 {[%clk 0:02:56]}  e6 {[%clk 0:02:59]} 5. Bxc4 {[%clk 0:02:55]}  a6 {[%clk 0:02:59]} 6. a4 {[%clk 0:02:55]}  c5 {[%clk 0:02:56]} 7. O-O {[%clk 0:02:54]}  Nc6 {[%clk 0:02:56]} 8. Nc3 {[%clk 0:02:54]}  cxd4 {[%clk 0:02:56]} 9. exd4 {[%clk 0:02:53]}  Nb4 {[%clk 0:02:55]} 10. Qe2 {[%clk 0:02:53]}  Be7 {[%clk 0:02:55]} 11. Rd1 {[%clk 0:02:53]}  O-O {[%clk 0:02:54]} 12. Bg5 {[%clk 0:02:50]}  Nfd5 {[%clk 0:02:54]} 13. Bxe7 {[%clk 0:02:44]}  Nxe7 {[%clk 0:02:53]} 14. Ne4 {[%clk 0:02:43]}  b6 {[%clk 0:02:50]} 15. Rac1 {[%clk 0:02:42]}  Bb7 {[%clk 0:02:49]} 16. Ne5 {[%clk 0:02:43]}  Nbd5 {[%clk 0:02:46]} 17. Bd3 {[%clk 0:02:38]}  Nf4 {[%clk 0:02:44]} 18. Qe3 {[%clk 0:02:29]}  Ned5 {[%clk 0:02:38]} 19. Qg3 {[%clk 0:02:29]}  Nxd3 {[%clk 0:02:37]} 20. Qxd3 {[%clk 0:02:28]}  Qh4 {[%clk 0:02:29]} 21. g3 {[%clk 0:02:15]}  Qh3 {[%clk 0:02:18]} 22. Nf3 {[%clk 0:02:00]}  Rfd8 {[%clk 0:02:05]} 23. Qd2 {[%clk 0:01:47]}  h6 {[%clk 0:01:58]} 24. Qe2 {[%clk 0:01:45]}  Qg4 {[%clk 0:01:51]} 25. Ned2 {[%clk 0:01:41]}  Nf4 {[%clk 0:01:40]} 26. Qe3 {[%clk 0:01:37]}  Nh3+ {[%clk 0:01:37]} 27. Kf1 {[%clk 0:01:36]}  Ng5 {[%clk 0:01:33]} 1/2-1/2


[Site "https://www.chess.com"]

[Event "Titled Tuesday Blitz September 28 2021"]
[White "Bologan, Victor"]
[Black "Lopez Gracia, Fernando"]
[WhiteFideId "13900048"]
[BlackFideId "2207184"]
[WhiteElo "2511"]
[BlackElo "2392"]
[Result "1-0"]
[Round "01"]
[TimeControl "180+1"]
[Date "2021.09.28"]
[WhiteClock "0:01:51"]
[BlackClock "0:00:35"]

1. e4 {[%clk 0:02:59]}  e5 {[%clk 0:02:54]} 2. Nf3 {[%clk 0:02:58]}  Nc6 {[%clk 0:02:54]} 3. Bc4 {[%clk 0:02:58]}  Nf6 {[%clk 0:02:54]} 4. d3 {[%clk 0:02:59]}  Bc5 {[%clk 0:02:54]} 5. c3 {[%clk 0:02:59]}  d6 {[%clk 0:02:54]} 6. O-O {[%clk 0:02:58]}  O-O {[%clk 0:02:54]} 7. h3 {[%clk 0:02:57]}  h6 {[%clk 0:02:51]} 8. Re1 {[%clk 0:02:57]}  Be6 {[%clk 0:02:49]} 9. Bb5 {[%clk 0:02:54]}  a6 {[%clk 0:02:28]} 10. Bxc6 {[%clk 0:02:53]}  bxc6 {[%clk 0:02:29]} 11. d4 {[%clk 0:02:53]}  exd4 {[%clk 0:02:25]} 12. cxd4 {[%clk 0:02:53]}  Bb4 {[%clk 0:02:25]} 13. Bd2 {[%clk 0:02:53]}  Bxd2 {[%clk 0:02:25]} 14. Nbxd2 {[%clk 0:02:53]}  d5 {[%clk 0:02:20]} 15. e5 {[%clk 0:02:52]}  Nd7 {[%clk 0:02:19]} 16. Qc2 {[%clk 0:02:51]}  Rb8 {[%clk 0:02:14]} 17. Qxc6 {[%clk 0:02:42]}  Rxb2 {[%clk 0:02:13]} 18. Nb3 {[%clk 0:02:42]}  Nb6 {[%clk 0:02:07]} 19. Nc5 {[%clk 0:02:39]}  Re8 {[%clk 0:01:19]} 20. Nxa6 {[%clk 0:02:32]}  Qa8 {[%clk 0:01:12]} 21. Qxa8 {[%clk 0:02:25]}  Rxa8 {[%clk 0:01:13]} 22. Nxc7 {[%clk 0:02:25]}  Raxa2 {[%clk 0:01:13]} 23. Rxa2 {[%clk 0:02:24]}  Rxa2 {[%clk 0:01:14]} 24. Rb1 {[%clk 0:02:13]}  Nc4 {[%clk 0:01:14]} 25. Rb8+ {[%clk 0:02:12]}  Kh7 {[%clk 0:01:13]} 26. Re8 {[%clk 0:02:11]}  Nd2 {[%clk 0:01:06]} 27. Nxd2 {[%clk 0:02:00]}  Rxd2 {[%clk 0:01:07]} 28. Nxe6 {[%clk 0:02:00]}  fxe6 {[%clk 0:01:07]} 29. Rxe6 {[%clk 0:02:00]}  Rxd4 {[%clk 0:01:08]} 30. g3 {[%clk 0:01:59]}  Re4 {[%clk 0:01:06]} 31. f4 {[%clk 0:01:58]}  d4 {[%clk 0:00:58]} 32. Kf2 {[%clk 0:01:57]}  d3 {[%clk 0:00:50]} 33. Rd6 {[%clk 0:01:55]}  g5 {[%clk 0:00:40]} 34. Kf3 {[%clk 0:01:52]}  Re1 {[%clk 0:00:39]} 35. Rxd3 {[%clk 0:01:51]}  gxf4 {[%clk 0:00:38]} 36. gxf4 {[%clk 0:01:51]}  Kg6 {[%clk 0:00:39]} 37. Rd6+ {[%clk 0:01:51]}  Kg7 {[%clk 0:00:37]} 38. Kg4 {[%clk 0:01:51]}  Rg1+ {[%clk 0:00:35]} 39. Kf5 {[%clk 0:01:51]} 1-0


[Site "https://www.chess.com"]

[Event "Titled Tuesday Blitz September 28 2021"]
[White "Bouget, Alexandre"]
[Black "Zhigalko, Sergei"]
[WhiteFideId "681318"]
[BlackFideId "13502956"]
[WhiteElo "2178"]
[BlackElo "2662"]
[Result "0-1"]
[Round "01"]
[TimeControl "180+1"]
[Date "2021.09.28"]
[WhiteClock "0:00:05"]
[BlackClock "0:01:40"]

1. d4 {[%clk 0:02:59]}  Nf6 {[%clk 0:02:58]} 2. c4 {[%clk 0:02:58]}  e6 {[%clk 0:02:57]} 3. Nc3 {[%clk 0:02:57]}  Bb4 {[%clk 0:02:57]} 4. e3 {[%clk 0:02:57]}  O-O {[%clk 0:02:57]} 5. Bd2 {[%clk 0:02:56]}  b6 {[%clk 0:02:54]} 6. Nf3 {[%clk 0:02:54]}  Bb7 {[%clk 0:02:54]} 7. Bd3 {[%clk 0:02:52]}  d5 {[%clk 0:02:50]} 8. cxd5 {[%clk 0:02:49]}  exd5 {[%clk 0:02:50]} 9. O-O {[%clk 0:02:48]}  Bd6 {[%clk 0:02:49]} 10. Ne5 {[%clk 0:02:47]}  c5 {[%clk 0:02:49]} 11. f4 {[%clk 0:02:46]}  Nc6 {[%clk 0:02:49]} 12. Nxc6 {[%clk 0:01:51]}  Bxc6 {[%clk 0:02:49]} 13. Be1 {[%clk 0:01:51]}  Re8 {[%clk 0:02:47]} 14. Qf3 {[%clk 0:01:46]}  Ne4 {[%clk 0:02:41]} 15. Rd1 {[%clk 0:01:25]}  cxd4 {[%clk 0:02:36]} 16. exd4 {[%clk 0:01:17]}  Qf6 {[%clk 0:02:36]} 17. Bb5 {[%clk 0:00:49]}  Nxc3 {[%clk 0:01:48]} 18. Bxc6 {[%clk 0:00:47]}  Nxd1 {[%clk 0:01:48]} 19. Bxa8 {[%clk 0:00:28]}  Qxd4+ {[%clk 0:01:44]} 20. Bf2 {[%clk 0:00:08]}  Nxf2 {[%clk 0:01:42]} 21. Qxd5 {[%clk 0:00:03]}  Nh3+ {[%clk 0:01:40]} 22. Kh1 {[%clk 0:00:04]}  Qg1+ {[%clk 0:01:39]} 23. Rxg1 {[%clk 0:00:05]}  Nf2# {[%clk 0:01:40]} 0-1


[Site "https://www.chess.com"]

[Event "Titled Tuesday Blitz September 28 2021"]
[White "Buscar, Michael"]
[Black "Gabrielian, Artur"]
[WhiteFideId "2603616"]
[BlackFideId "4131002"]
[WhiteElo "2010"]
[BlackElo "2489"]
[Result "0-1"]
[Round "01"]
[TimeControl "180+1"]
[Date "2021.09.28"]
[WhiteClock "0:00:01"]
[BlackClock "0:00:59"]

1. d4 {[%clk 0:02:36]}  Nf6 {[%clk 0:02:56]} 2. c4 {[%clk 0:02:35]}  c5 {[%clk 0:02:55]} 3. e3 {[%clk 0:02:33]}  e6 {[%clk 0:02:53]} 4. Nf3 {[%clk 0:02:33]}  cxd4 {[%clk 0:02:52]} 5. exd4 {[%clk 0:02:32]}  d5 {[%clk 0:02:53]} 6. Nc3 {[%clk 0:02:32]}  Bb4 {[%clk 0:02:51]} 7. Bd3 {[%clk 0:02:32]}  dxc4 {[%clk 0:02:51]} 8. Bxc4 {[%clk 0:02:32]}  O-O {[%clk 0:02:51]} 9. O-O {[%clk 0:02:33]}  a6 {[%clk 0:02:51]} 10. Bd3 {[%clk 0:02:33]}  b5 {[%clk 0:02:48]} 11. Qe2 {[%clk 0:02:21]}  Bxc3 {[%clk 0:02:48]} 12. bxc3 {[%clk 0:02:21]}  Bb7 {[%clk 0:02:48]} 13. Bg5 {[%clk 0:02:18]}  Nbd7 {[%clk 0:02:47]} 14. Ne5 {[%clk 0:02:17]}  Qc7 {[%clk 0:02:47]} 15. Nxd7 {[%clk 0:02:10]}  Nxd7 {[%clk 0:02:47]} 16. Rac1 {[%clk 0:01:49]}  Bd5 {[%clk 0:02:40]} 17. Qh5 {[%clk 0:01:46]}  g6 {[%clk 0:02:39]} 18. Qh3 {[%clk 0:01:42]}  Qc6 {[%clk 0:02:38]} 19. f4 {[%clk 0:01:19]}  f5 {[%clk 0:02:30]} 20. Rf2 {[%clk 0:00:58]}  Nf6 {[%clk 0:02:29]} 21. Qh4 {[%clk 0:00:50]}  Ne4 {[%clk 0:02:20]} 22. Bxe4 {[%clk 0:00:50]}  Bxe4 {[%clk 0:02:20]} 23. Bf6 {[%clk 0:00:50]}  Rf7 {[%clk 0:02:19]} 24. Be5 {[%clk 0:00:49]}  Rc8 {[%clk 0:02:14]} 25. Re2 {[%clk 0:00:42]}  Qd5 {[%clk 0:02:13]} 26. Re3 {[%clk 0:00:38]}  Qxa2 {[%clk 0:02:07]} 27. Rg3 {[%clk 0:00:37]}  Kf8 {[%clk 0:01:28]} 28. Qh6+ {[%clk 0:00:15]}  Ke8 {[%clk 0:01:27]} 29. h4 {[%clk 0:00:16]}  Qa3 {[%clk 0:01:21]} 30. Re1 {[%clk 0:00:13]}  Rxc3 {[%clk 0:01:19]} 31. Rxc3 {[%clk 0:00:08]}  Qxc3 {[%clk 0:01:19]} 32. Rf1 {[%clk 0:00:07]}  Qg3 {[%clk 0:01:18]} 33. Rf2 {[%clk 0:00:07]}  Qg4 {[%clk 0:01:16]} 34. Ra2 {[%clk 0:00:03]}  b4 {[%clk 0:01:12]} 35. h5 {[%clk 0:00:01]}  Qxh5 {[%clk 0:00:58]} 36. Qxh5 {[%clk 0:00:01]}  gxh5 {[%clk 0:00:59]} 37. Rxa6 {[%clk 0:00:02]}  Rb7 {[%clk 0:00:59]} 38. Rxe6+ {[%clk 0:00:02]}  Kf7 {[%clk 0:00:59]} 39. Rf6+ {[%clk 0:00:02]}  Kg8 {[%clk 0:01:00]} 40. Bd6 {[%clk 0:00:01]}  b3 {[%clk 0:00:59]} 0-1


[Site "https://www.chess.com"]

[Event "Titled Tuesday Blitz September 28 2021"]
[White "Fier, Alexandr"]
[Black "Dudzinski, Pawel"]
[WhiteFideId "2107139"]
[BlackFideId "1117890"]
[WhiteElo "2569"]
[BlackElo "2193"]
[Result "1-0"]
[Round "01"]
[TimeControl "180+1"]
[Date "2021.09.28"]
[WhiteClock "0:00:40"]
[BlackClock "0:00:08"]

1. d4 {[%clk 0:02:41]}  d5 {[%clk 0:02:58]} 2. c4 {[%clk 0:02:41]}  e6 {[%clk 0:02:59]} 3. Nc3 {[%clk 0:02:40]}  Nf6 {[%clk 0:02:59]} 4. cxd5 {[%clk 0:02:39]}  exd5 {[%clk 0:02:58]} 5. Bg5 {[%clk 0:02:39]}  Bb4 {[%clk 0:02:57]} 6. Qb3 {[%clk 0:02:35]}  Nc6 {[%clk 0:02:49]} 7. e3 {[%clk 0:02:33]}  O-O {[%clk 0:02:43]} 8. Nf3 {[%clk 0:02:32]}  Be6 {[%clk 0:02:30]} 9. Be2 {[%clk 0:02:29]}  h6 {[%clk 0:02:24]} 10. Bxf6 {[%clk 0:02:29]}  Qxf6 {[%clk 0:02:24]} 11. O-O {[%clk 0:02:29]}  Rad8 {[%clk 0:02:20]} 12. a3 {[%clk 0:02:26]}  Bd6 {[%clk 0:02:11]} 13. Qxb7 {[%clk 0:02:24]}  Ne7 {[%clk 0:02:11]} 14. Qa6 {[%clk 0:02:21]}  Bg4 {[%clk 0:01:58]} 15. Kh1 {[%clk 0:02:03]}  Rb8 {[%clk 0:01:46]} 16. Nb5 {[%clk 0:02:01]}  Rb6 {[%clk 0:01:45]} 17. Qa4 {[%clk 0:02:01]}  Bd7 {[%clk 0:01:37]} 18. Qa5 {[%clk 0:02:01]}  Rfb8 {[%clk 0:01:29]} 19. Nxd6 {[%clk 0:01:59]}  Qxd6 {[%clk 0:01:28]} 20. b4 {[%clk 0:01:52]}  Nc6 {[%clk 0:01:26]} 21. Qc5 {[%clk 0:01:52]}  Qe6 {[%clk 0:01:18]} 22. Rfc1 {[%clk 0:01:49]}  f6 {[%clk 0:01:08]} 23. Rab1 {[%clk 0:01:34]}  R8b7 {[%clk 0:01:04]} 24. Bd1 {[%clk 0:01:26]}  Ne7 {[%clk 0:01:04]} 25. Qc3 {[%clk 0:01:21]}  g5 {[%clk 0:01:02]} 26. Ne1 {[%clk 0:01:19]}  a5 {[%clk 0:00:51]} 27. Nd3 {[%clk 0:01:05]}  axb4 {[%clk 0:00:45]} 28. axb4 {[%clk 0:01:05]}  Qf5 {[%clk 0:00:23]} 29. Kg1 {[%clk 0:00:58]}  Qg6 {[%clk 0:00:15]} 30. Nc5 {[%clk 0:00:58]}  Bf5 {[%clk 0:00:14]} 31. Nxb7 {[%clk 0:00:55]}  Rc6 {[%clk 0:00:14]} 32. Qb2 {[%clk 0:00:52]}  Bxb1 {[%clk 0:00:15]} 33. Qxb1 {[%clk 0:00:51]}  Rb6 {[%clk 0:00:13]} 34. Nc5 {[%clk 0:00:48]}  Qf7 {[%clk 0:00:10]} 35. Qb3 {[%clk 0:00:41]}  Nc6 {[%clk 0:00:09]} 36. b5 {[%clk 0:00:40]}  Na7 {[%clk 0:00:07]} 37. Be2 {[%clk 0:00:40]}  Qe8 {[%clk 0:00:08]} 38. Qa4 {[%clk 0:00:40]} 1-0


[Site "https://www.chess.com"]

[Event "Titled Tuesday Blitz September 28 2021"]
[White "Galego, Luis"]
[Black "Nakamura, Hikaru"]
[WhiteFideId "1900072"]
[BlackFideId "2016192"]
[WhiteElo "2524"]
[BlackElo "2884"]
[Result "0-1"]
[Round "01"]
[TimeControl "180+1"]
[Date "2021.09.28"]
[WhiteClock "0:00:01"]
[BlackClock "0:00:51"]

1. d4 {[%clk 0:01:54]}  g6 {[%clk 0:03:00]} 2. h4 {[%clk 0:01:53]}  Bg7 {[%clk 0:02:50]} 3. h5 {[%clk 0:01:53]}  Nf6 {[%clk 0:02:50]} 4. h6 {[%clk 0:01:52]}  Bf8 {[%clk 0:02:50]} 5. Nc3 {[%clk 0:01:52]}  d5 {[%clk 0:02:50]} 6. Bg5 {[%clk 0:01:52]}  e6 {[%clk 0:02:50]} 7. e4 {[%clk 0:01:41]}  Be7 {[%clk 0:02:49]} 8. e5 {[%clk 0:01:39]}  Nfd7 {[%clk 0:02:49]} 9. Bxe7 {[%clk 0:01:38]}  Qxe7 {[%clk 0:02:50]} 10. Nf3 {[%clk 0:01:38]}  a6 {[%clk 0:02:49]} 11. Qd2 {[%clk 0:01:31]}  c5 {[%clk 0:02:49]} 12. dxc5 {[%clk 0:01:28]}  Nc6 {[%clk 0:02:49]} 13. Qf4 {[%clk 0:01:26]}  Nxc5 {[%clk 0:02:41]} 14. O-O-O {[%clk 0:01:25]}  b5 {[%clk 0:02:36]} 15. Bd3 {[%clk 0:01:18]}  Bb7 {[%clk 0:02:34]} 16. Ne2 {[%clk 0:01:16]}  O-O {[%clk 0:02:27]} 17. Ned4 {[%clk 0:01:16]}  Nb8 {[%clk 0:02:22]} 18. Rhe1 {[%clk 0:01:03]}  Nbd7 {[%clk 0:02:21]} 19. Kb1 {[%clk 0:01:03]}  Rac8 {[%clk 0:02:21]} 20. Ng5 {[%clk 0:01:00]}  Rce8 {[%clk 0:02:10]} 21. Qg3 {[%clk 0:00:54]}  Na4 {[%clk 0:02:07]} 22. f4 {[%clk 0:00:47]}  Kh8 {[%clk 0:02:00]} 23. Re3 {[%clk 0:00:37]}  Ndc5 {[%clk 0:01:57]} 24. Be2 {[%clk 0:00:30]}  b4 {[%clk 0:01:56]} 25. Nb3 {[%clk 0:00:29]}  Rc8 {[%clk 0:01:53]} 26. Nd4 {[%clk 0:00:24]}  Rc7 {[%clk 0:01:38]} 27. Qh4 {[%clk 0:00:21]}  Ne4 {[%clk 0:01:34]} 28. Bd3 {[%clk 0:00:14]}  Nec5 {[%clk 0:01:16]} 29. g4 {[%clk 0:00:13]}  f6 {[%clk 0:01:12]} 30. Ngf3 {[%clk 0:00:11]}  f5 {[%clk 0:01:12]} 31. Qxe7 {[%clk 0:00:11]}  Rxe7 {[%clk 0:01:12]} 32. gxf5 {[%clk 0:00:11]}  gxf5 {[%clk 0:01:07]} 33. Ng5 {[%clk 0:00:11]}  Rg8 {[%clk 0:01:06]} 34. Rg1 {[%clk 0:00:11]}  Rg6 {[%clk 0:01:06]} 35. Reg3 {[%clk 0:00:11]}  Bc8 {[%clk 0:01:04]} 36. Nc6 {[%clk 0:00:08]}  Rc7 {[%clk 0:01:02]} 37. Nd8 {[%clk 0:00:09]}  Kg8 {[%clk 0:01:02]} 38. Ngf7 {[%clk 0:00:08]}  Rxf7 {[%clk 0:00:52]} 39. Rxg6+ {[%clk 0:00:08]}  hxg6 {[%clk 0:00:52]} 40. Nxf7 {[%clk 0:00:08]}  Kxf7 {[%clk 0:00:53]} 41. h7 {[%clk 0:00:09]}  Kg7 {[%clk 0:00:54]} 42. Rxg6+ {[%clk 0:00:09]}  Kxh7 {[%clk 0:00:54]} 43. Rf6 {[%clk 0:00:08]}  Kg7 {[%clk 0:00:53]} 44. a3 {[%clk 0:00:09]}  Nxd3 {[%clk 0:00:50]} 45. cxd3 {[%clk 0:00:08]}  b3 {[%clk 0:00:51]} 46. d4 {[%clk 0:00:06]}  Bd7 {[%clk 0:00:50]} 47. Kc1 {[%clk 0:00:03]}  Bc8 {[%clk 0:00:50]} 48. Kb1 {[%clk 0:00:01]}  Nb6 {[%clk 0:00:50]} 49. Kc1 {[%clk 0:00:01]}  Nc4 {[%clk 0:00:51]} 0-1


[Site "https://www.chess.com"]